Cogmind - Beta 10.2 @@@ ROGUE MODE // 2020.12.23 @ 13:40:23 Player: Shadow Pussy wanter Result: Destroyed by S-10 Pest with Light Assault Rifle Performance ------------- Evolutions (1) 500 Regions Visited (2) 400 Robots Destroyed (8) 40 Value Destroyed (130) 130 Prototype IDs (0) 0 Alien Tech Used (0) 0 Bonus (0) 0 TOTAL SCORE: 1070 Bonus ------- None Cogmind --------- Core Integrity 0/400 Matter 275/300 Energy 99/100 System Corruption 0% Temperature Cool (0) Movement Core (50) Location -9/Materials Parts ------- > --- POWER (1) -------- (None) > --- PROPULSION (4) --- (None) > --- UTILITY (2) ------ (None) > --- WEAPON (2) ------- (None) > --- INVENTORY (4) ---- Flight Unit Flight Unit Large Storage Unit Small Laser Peak State ------------ > --- POWER ------------ Light Ion Engine > --- PROPULSION ------- Aluminum Leg Aluminum Leg > --- UTILITY ---------- Small Storage Unit Improved Terrain Scanner > --- WEAPON ----------- Medium Laser Medium Laser > --- INVENTORY -------- Ion Engine Assault Rifle [Rating: 8] Favorites ----------- Power Light Ion Engine Engine Light Ion Engine Propulsion Aluminum Leg Leg Aluminum Leg Flight Unit Flight Unit Utility Large Storage Unit Device Improved Terrain Scanner Storage Large Storage Unit Weapon Medium Laser Energy Gun Medium Laser Ballistic Gun Assault Rifle Build | -11 -10 -9 ------- Run | Scr Mat Mat Slots Evolved 2 | . . 2 Power . | . . . Propulsion 2 | . . 2 Utility . | . . . Weapon . | . . . Parts Attached 14 | 7 4 3 Power 2 | 1 . 1 Engine 2 | 1 . 1 Core . | . . . Reactor . | . . . Propulsion 4 | 2 . 2 Treads . | . . . Leg 2 | 2 . . Wheel . | . . . Hover . | . . . Flight 2 | . . 2 Utility 4 | 2 2 . Device 1 | 1 . . Storage 3 | 1 2 . Processor . | . . . Hackware . | . . . Protection . | . . . Artifact . | . . . Weapon 4 | 2 2 . Energy Gun 2 | 2 . . Energy Cannon . | . . . Ballistic Gun 2 | . 2 . Ballistic Cannon . | . . . Launcher . | . . . Special Weapon . | . . . Impact Weapon . | . . . Slashing Weapon . | . . . Piercing Weapon . | . . . Special Melee Weapon . | . . . Unidentified Prototypes . | . . . Parts Lost 5 | . 4 1 Power 1 | . 1 . Propulsion 1 | . . 1 Utility 1 | . 1 . Weapon 2 | . 2 . Highest Loss Streak 2 | . 2 1 Average Slot Usage (%) 75 | . 95 30 Engine 11 | . 13 5 Leg 21 | . 28 6 Device 3 | . 4 . Storage 18 | . 21 10 Energy Gun 8 | . 12 . Ballistic Gun 12 | . 13 8 Naked Turns 74 | . . 74 Heaviest Build 40 | 12 39 40 Greatest Support 20 | 20 20 20 Greatest Overweight (x) 12 | 3 1 12 Average Overweight (x) . | . . . Largest Inventory Capacity 16 | 6 16 16 Average Capacity 10 | 5 11 9 Most Carried 9 | 2 9 9 Average Carried 5 | 1 5 5 Final Capacity 16 | 6 16 4 Final Carried 9 | 2 9 4 Class Distribution -------------------- 100% | Mutant Dominant Class ---------------- Mutant | -10/Materials Mutant | -9/Materials Resources | -11 -10 -9 ----------- Run | Scr Mat Mat Matter Collected 310 | 233 77 . Remotely . | . . . Salvage Created 322 | 17 305 . Parts 14 | 2 12 . Haulers Intercepted . | . . . Recyclers Shooed 1 | . 1 . Parts Field Recycled . | . . . Retrieved Matter . | . . . Parts Self-Destructed . | . . . Prevented . | . . . Kills | -11 -10 -9 ------- Run | Scr Mat Mat Combat Hostiles Destroyed 5 | . 5 . Guns 5 | . 5 . Classes Destroyed 4 | 1 3 . Tunneler 1 | 1 . . Recycler 2 | . 2 . Swarmer 3 | . 3 . Grunt 2 | . 2 . Best Kill Streak 3 | 1 3 . Combat Bots Only 3 | . 3 . Max Kills in Single Turn 1 | 1 1 . Gunslinging . | . . . Exploded . | . . . Melee . | . . . Uniques/NPCs Destroyed . | . . . Combat | -11 -10 -9 -------- Run | Scr Mat Mat Damage Taken 971 | 1 469 501 Core 475 | . 73 402 Absorbed by Shields . | . . . Core Remaining (%) 85 | 100 70 . Volleys Fired 24 | 3 21 . Largest 2 | 2 2 . Hottest 100 | 100 100 . Shots Fired 36 | 6 30 . Gun 36 | 6 30 . Cannon . | . . . Launcher . | . . . Special . | . . . Kinetic 8 | . 8 . Thermal 28 | 6 22 . Explosive . | . . . Electromagnetic . | . . . Robot Hit Streak 11 | 4 11 . Robot Miss Streak 3 | 1 3 . Penetration Max . | . . . Secondary Targets . | . . . Shots Hit Robots 24 | 4 20 . Core Hits 14 | 2 12 . Critical Hits . | . . . Critical Kills . | . . . Critical Parts Destroyed . | . . . Melee Attacks . | . . . Impact . | . . . Slashing . | . . . Piercing . | . . . Sneak Attacks . | . . . Combat Hostiles . | . . . Follow-up Attacks . | . . . Damage Inflicted 292 | 39 253 . Guns 286 | 37 249 . Cannons . | . . . Explosions . | . . . Melee . | . . . Ramming 6 | 2 4 . Kinetic 67 | . 67 . Thermal 219 | 37 182 . Explosive . | . . . Electromagnetic . | . . . Impact . | . . . Slashing . | . . . Piercing . | . . . Highest Corruption . | . . . Average Corruption . | . . . Corruption Purged . | . . . Overload Shots . | . . . Overflow Damage . | . . . Projectiles . | . . . Explosions . | . . . Melee . | . . . Knockbacks . | . . . Impact . | . . . Kinetic . | . . . Secondary . | . . . Self-Inflicted Damage 1 | 1 . . Shots . | . . . Rammed 1 | 1 . . Targets Rammed 2 | 1 1 . Kicked 1 | . 1 . Crushed . | . . . Highest Temperature 130 | 117 130 . Average Temperature 58 | 60 58 . Received Heat Transfer 180 | . 111 69 Siege Activations . | . . . Robots Corrupted . | . . . Combat Hostiles . | . . . Parts Fried . | . . . Impact Corruptions . | . . . Robots Melted . | . . . Combat Hostiles . | . . . Parts Melted 2 | . 2 . Heat Transferred 666 | 111 555 . Parts Sabotaged . | . . . Parts Stolen . | . . . Parts Stripped . | . . . Power Chain Reactions . | . . . Missiles Intercepted . | . . . Alert | -11 -10 -9 ------- Run | Scr Mat Mat Peak Influence 176 | 5 133 176 Initial 51 | . 3 51 Average 74 | . 81 106 Maximum Alert Level . | . . . Low Security (%) 100 | 100 100 100 Level 1 . | . . . Level 2 . | . . . Level 3 . | . . . Level 4 . | . . . Level 5 . | . . . High Security . | . . . Max Security . | . . . Squads Dispatched 1 | . . 1 Investigation . | . . . Extermination . | . . . Reinforcement 1 | . . 1 Assault . | . . . Garrison . | . . . Intercept . | . . . Construction Impeded . | . . . Haulers Reinforced . | . . . Stealth | -11 -10 -9 --------- Run | Scr Mat Mat Distress Signals 1 | . 1 . Communications Jammed . | . . . Distress Signals . | . . . Times Spotted 22 | . 11 11 Peak Tracking Total 7 | . 4 7 Tactical Retreats 2 | . . 2 Traps | -11 -10 -9 ------- Run | Scr Mat Mat Traps Triggered 4 | . 1 3 Indirectly . | . . . Trap Hack Attempts . | . . . Triggered . | . . . Disarmed . | . . . Reprogrammed . | . . . Reused . | . . . Traps Extracted . | . . . Installed . | . . . Triggered . | . . . Machines | -11 -10 -9 ---------- Run | Scr Mat Mat Machines Disabled . | . . . Max in Single Turn . | . . . Machines Sabotaged . | . . . Garrisons Compromised . | . . . Overloaded Fab Kills . | . . . Fab Network Shutdowns . | . . . Hacking | -11 -10 -9 --------- Run | Scr Mat Mat Machines Accessed 4 | . 4 . Terminals 2 | . 2 . Fabricators . | . . . Repair Stations . | . . . Recycling Units 2 | . 2 . Scanalyzers . | . . . Garrison Access . | . . . Total Hacks 8 | . 8 . Successful 4 | . 4 . Failed 4 | . 4 . Catastrophic . | . . . Database Lockouts . | . . . Manual 5 | . 5 . Terminals 5 | . 5 . Fabricators . | . . . Repair Stations . | . . . Recycling Units 3 | . 3 . Scanalyzers . | . . . Garrison Access . | . . . Terminal Hacks 1 | . 1 . Terminal Index 1 | . 1 . Fabricator Hacks . | . . . Repair Station Hacks . | . . . Recycling Unit Hacks 3 | . 3 . Report Inventory 2 | . 2 . Retrieve Components 1 | . 1 . Scanalyzer . | . . . Garrison Access Hacks . | . . . Unauthorized Hacks . | . . . Terminals . | . . . Fabricators . | . . . Repair Stations . | . . . Recycling Units . | . . . Scanalyzers . | . . . Garrison Access . | . . . Data Cores Recovered . | . . . Used . | . . . Hacking Detections 1 | . 1 . Full Trace Events . | . . . Feedback Events . | . . . Feedback Blocked . | . . . Robot Schematics Acquired . | . . . Robots Built . | . . . Matter . | . . . Time . | . . . Total Robot Build Rating . | . . . Part Schematics Acquired . | . . . Parts Built . | . . . Matter . | . . . Time . | . . . Total Part Build Rating . | . . . Parts Repaired . | . . . Time . | . . . Parts Recycled . | . . . Recycled Matter . | . . . Retrieved Matter . | . . . Retrieved Components . | . . . Parts Scanalyzed . | . . . Part Schematics Acquired . | . . . Parts Damaged . | . . . Bothacking | -11 -10 -9 ------------ Run | Scr Mat Mat Used RIF Installer . | . . . Robots Hacked . | . . . Non-combat . | . . . Combat . | . . . Robot Hacks Applied . | . . . Relay Couplers Released . | . . . Robots Rewired . | . . . Allies Hacked . | . . . Hacks Repelled . | . . . Allies | -11 -10 -9 -------- Run | Scr Mat Mat Total Allies . | . . . Largest Group . | . . . Highest-Rated Group . | . . . Highest-Rated Ally . | . . . Total Orders . | . . . Ally Attacks . | . . . Total Damage . | . . . Kills . | . . . Allies Corrupted . | . . . Allies Melted . | . . . Intel | -11 -10 -9 ------- Run | Scr Mat Mat Robot Analysis Total . | . . . Derelict Logs Recovered . | . . . Drone Launches . | . . . Drone Recoveries . | . . . Exploration | -11 -10 -9 ------------- Run | Scr Mat Mat Turns Passed 593 | 96 346 151 Spaces Moved 434 | 57 207 170 Core 149 | 16 . 133 Treads . | . . . Legs 284 | 41 207 36 Wheels . | . . . Hover . | . . . Flight 1 | . . 1 Fastest Speed 40 | 50 120 40 Average Speed 112 | 129 135 80 Slowest Speed 650 | 200 150 650 Overloaded Moves . | . . . Propulsion Burnouts . | . . . Robots Hopped . | . . . Cave-ins Triggered . | . . . Exploration Rate (%) 19 | 4 38 15 Regions Visited 2 Branch Regions . Pre-discovered Areas . | . . . Known Exits Taken . | . . . Unknown Exits Taken 2 | 1 1 . Scrap Searched . | . . . Spaces Dug . | . . . Terrain Destroyed . | . . . Melee . | . . . Projectile . | . . . AOE . | . . . Terrain Rammed . | . . . Walls Destroyed . | . . . Machines Disabled . | . . . Actions | -11 -10 -9 --------- Run | Scr Mat Mat Total 497 | 69 242 186 Wait 7 | . 2 5 Move 432 | 56 206 170 Hop . | . . . Pick Up 12 | 2 8 2 Fast Attach 10 | 7 1 2 Attach 3 | . 2 1 Detach 1 | . . 1 Swap 1 | . 1 . Drop 5 | . . 5 Fire 24 | 3 21 . Melee . | . . . Ram . | . . . Kick 2 | 1 1 . Crush . | . . . Escape Stasis . | . . . Rewire . | . . . Trap . | . . . Miscellaneous . | . . . Route ------- -11/Scrapyard -10/Materials -9/Materials History --------- Turn | Location | Event 23 | -11/Scrapyard | Discovered new exit (range 15) 97 | -11/Scrapyard | Entered Materials 307 | -10/Materials | Build established: Mutant 390 | -10/Materials | Discovered new exit (range 16) 443 | -10/Materials | Entered another Materials area 443 | -9/Materials | Evolved 2 slots: Propulsion x2 575 | -9/Materials | Core integrity fell below 50% 589 | -9/Materials | Core integrity fell below 20% 594 | -9/Materials | Destroyed by S-10 Pest with Light Assault Rifle Last Messages --------------- 00505_ Massive razor-sharp blades shoot up from within the floor. 00505_ Aluminum Leg severed. 00505_ Assault Rifle severed. 00505_ Lgt. Assault Rifle severed. 00514_ Dropped Lrg. Storage Unit. 00516_ Triggered Blade Trap. 00516_ Massive razor-sharp blades shoot up from within the floor. 00516_ Ion Engine severed. 00519_ ALERT: Hostiles spotted, dispatching reinforcements to Terminal M003. 00532_ Acquired Flight Unit. 00536_ Dropped Flight Unit. 00537_ Dropped Targeting Computer. 00537_ Dropped Imp. Heat Sink. 00538_ Acquired Flight Unit. 00546_ Triggered Blade Trap. 00546_ Massive razor-sharp blades shoot up from within the floor. 00580_ T-07 Excavator is excavating. 00582_ R-06 Scavenger collects Lrg. Storage Unit. 00588_ U-05 Engineer lays Concrete. Map ----- +----------------------------------------------------+ | #???????????????????????????????????????????? | | #???????????????????????????????????????????? | | #"####???????????????????????????????????????????? | | #?#########???????????????????????????????????? | | # #???????????????????????????????????? | | # = #???????????????????????????????????? | | + #???????????????????????????????????? | | # "T" #???????????????????????????????????? | | ###########???????????????????????????????????? | | #?! #??????????????????????????????????????? | | #? #??????????????????????????????????????? | | # """ #??????????????????????????????????????? | | # """ #??????????????????????????????????????? | | **/ """ #??????????????????????????????????????? | | ^[=# #??????????????????????????????????????? | | [############??????????????????????????????????? | | !## #??????????????????????????????????? | | ## #??????????????????????????????????? | | ## #??????????????????????????????????? | | ## #??????????????????????????????????? | | ## """ """ #??????????????????????????????????? | | ## """ """ #??????????????????????????????????? | | ## """ """ #??????????????????????????????????? | | ## #?????????###+###??????????????????? | | ###+################# ####???????????????? | | @ ????????? | | u ????????? | | m ????????? | | ##################### ####### ?????????? | | ##############???????#######??????????????????? | | # | T #????????????????????????????????? | | # #????????????????????????????????? | | / """ """ #????????????????????????????????? | | # """ """ #????????????????????????????????? | | # """ """ #????????????????????????????????? | | ##############????????????????????????????????? | | ####?????????????????????????????????????????????? | | ?????????????????????????????????????????????????? | | ?????????????????????????????????????????????????? | | ?????????????????????????????????????????????????? | | ?????????????????????????????????????????????????? | | ?????????????????????????????????????????????????? | | ?????????????????????????????????????????????????? | | ?????????????????????????????????????????????????? | | ?????????????????????????????????????????????????? | | ?????????????????????????????????????????????????? | | | | | | | | | +----------------------------------------------------+ Best States ------------- Heat Dissipation 28 Energy Generation 10 Energy Capacity 250 Matter Stores 300 Matter Capacity 300 Sight Range 16 Terrain Scan Range 16 Terrain Scan Density 10 Evasion (%) 50 Item Schematics ----------------- None Robot Schematics ------------------ None Fabricated ------------ Nothing Alien Tech Used ----------------- None Achievements -------------- None Challenges ------------ None Game ------ Seed DefenseDamperShifter Manual? 0 Play Time 00:07:37 Cumulative 13.1 hours Start 2020.12.23 @ 13:34:40 End 2020.12.23 @ 13:40:23 Sessions 1 Manual Loads 0 Difficulty Rogue Special Mode None Game No. 22 Rogue 22 Adventurer 0 Explorer 0 Win Type - Total 0 Types 0/0/0/0/0/0/0/0/0 Lore% 22 Gallery% 25 Achievement% 21 Wizard Run 0 Options --------- ASCII 0 Keyboard 0 Movement Numpad Keybinds 0 Fullscreen 1 Font 18/SmallcapsGlow Map View 76x50 Tactical HUD 1 Map Filters NONE Filters NONE Steam 1 RUN: 2c9a611f-2819-4e3a-ae7e-a987e1bb02a3